bitfinex/quotes_BTCUSD_20260104
["timestamp","ask_amount","ask_price","bid_price","bid_amount"]
[1767566416541,0.01097345,91129.0,91123.0,0.01097417]
[1767566416849,0.01097345,91129.0,91122.0,0.05994808]
[1767566416850,0.01097357,91128.0,91122.0,0.05994808]
[1767566417010,0.01097369,91127.0,91122.0,0.05994808]
[1767566417467,0.01097357,91128.0,91122.0,0.05994808]
[1767566417748,0.01097357,91128.0,91122.0,0.05967142]
[1767566417926,0.00697357,91128.0,91123.0,0.01097417]
[1767566418157,0.00697357,91128.0,91122.0,0.05939478]
[1767566419706,0.01097369,91127.0,91122.0,0.05839578]
[1767566420509,0.01097369,91127.0,91122.0,0.04742149]
[1767566420850,0.01097369,91127.0,91122.0,0.05839578]
[1767566421052,0.01097381,91126.0,91122.0,0.04742149]
[1767566421248,0.01097345,91129.0,91122.0,0.04742149]
[1767566421706,0.01097345,91129.0,91122.0,0.04737747]
[1767566422101,0.01097357,91128.0,91122.0,0.05835176]
[1767566424813,0.01097369,91127.0,91122.0,0.04737747]
[1767566425016,0.01097369,91127.0,91122.0,0.05835176]
[1767566425215,0.01097369,91127.0,91122.0,0.04737747]
[1767566425747,0.01097381,91126.0,91122.0,0.04737747]
[1767566425914,0.00597369,91127.0,91122.0,0.04737747]
[1767566428945,0.01097381,91126.0,91122.0,0.04733345]
[1767566430491,0.00597369,91127.0,91122.0,0.05830774]
[1767566430893,0.01097381,91126.0,91122.0,0.04733345]
[1767566431115,0.01097381,91126.0,91122.0,0.03650029]
[1767566431274,0.01097381,91126.0,91122.0,0.03636201]
[1767566431447,0.01097381,91126.0,91122.0,0.03608546]
[1767566431649,0.01097381,91126.0,91122.0,0.03594719]
[1767566431896,0.01097381,91126.0,91119.0,0.01097465]
[1767566432062,0.00597369,91127.0,91121.0,0.01097441]
[1767566433257,0.00597369,91127.0,91121.0,0.0608016]
[1767566434303,0.01097381,91126.0,91121.0,0.01044383]
[1767566434509,0.04694858,91125.0,91121.0,0.01044383]
[1767566435525,0.04694858,91125.0,91122.0,0.01097429]
[1767566435672,0.04694858,91125.0,91121.0,0.01044383]
[1767566436397,0.04594958,91125.0,91121.0,0.01039981]
[1767566436587,0.04594958,91125.0,91122.0,0.01097429]
[1767566437089,0.04594958,91125.0,91121.0,0.01039981]
[1767566437268,0.04594958,91125.0,91122.0,0.01097429]
[1767566438488,0.01097369,91127.0,91122.0,0.01097429]
[1767566439082,0.04594958,91126.0,91122.0,0.01097429]
[1767566439718,0.04594958,91126.0,91121.0,0.00711425]
[1767566440272,0.04594958,91126.0,91122.0,0.01097429]
[1767566441077,0.03294958,91125.0,91121.0,0.00711425]
[1767566441675,0.03294958,91125.0,91122.0,0.01097429]
[1767566441881,0.03294958,91125.0,91121.0,0.00711425]
[1767566442083,0.03294958,91125.0,91122.0,0.01097429]
[1767566442517,0.03294958,91125.0,91121.0,0.00711425]
[1767566442725,0.03294958,91125.0,91122.0,0.01097429]
[1767566443123,0.01097369,91127.0,91123.0,0.04909087]
[1767566443532,0.01097381,91126.0,91123.0,0.04909087]
[1767566444243,0.01097381,91126.0,91123.0,0.04809187]
[1767566445334,0.01097369,91127.0,91123.0,0.04809187]
[1767566446669,0.01097381,91126.0,91123.0,0.04809187]
[1767566447308,0.06584291,91126.0,91123.0,0.04809187]
[1767566447438,0.01097405,91124.0,91120.0,0.04909087]
[1767566447835,0.01097417,91123.0,91115.0,0.022]
[1767566448096,0.0548751,91116.0,91115.0,4e-05]
[1767566448291,0.05487493,91117.0,91115.0,4e-05]
[1767566448790,0.04487493,91117.0,91115.0,4e-05]
[1767566449331,0.04487493,91117.0,91105.0,4e-05]
[1767566449332,0.01097598,91108.0,91105.0,4e-05]
[1767566449532,0.06585648,91108.0,91105.0,0.00040008]
[1767566449741,0.06585648,91108.0,91105.0,0.04949095]
[1767566449950,0.054881,91107.0,91105.0,1e-08]
[1767566450080,0.05488233,91104.0,91103.0,1e-08]
[1767566450284,0.05488233,91104.0,91103.0,6.324e-05]
[1767566450686,0.01097706,91099.0,91095.0,0.04221502]
[1767566450883,0.01097718,91098.0,91095.0,0.04221502]
[1767566451086,0.01097706,91099.0,91095.0,0.04221502]
[1767566451286,0.01097718,91098.0,91095.0,0.04221502]
[1767566452848,0.01097706,91099.0,91095.0,0.04221502]
[1767566452999,0.00997806,91099.0,91095.0,0.04221502]
[1767566453194,0.01097718,91098.0,91095.0,0.04221502]
[1767566453638,0.00997806,91099.0,91095.0,0.04221502]
[1767566454440,0.01097694,91100.0,91095.0,0.05319257]
[1767566454623,0.01097694,91100.0,91096.0,0.04909087]
[1767566455317,0.06586119,91101.0,91096.0,0.04909087]
[1767566456236,0.01097694,91100.0,91096.0,0.04909087]
[1767566456571,0.00797694,91100.0,91096.0,0.04909087]
[1767566456992,0.00797694,91100.0,91095.0,0.01097755]
[1767566457399,0.00797694,91100.0,91095.0,0.06006842]
[1767566457605,0.01097682,91101.0,91095.0,0.06006842]
[1767566458284,0.01097682,91101.0,91097.0,0.04909087]
[1767566460347,0.01101634,91105.0,91101.0,0.04909087]
[1767566460471,0.01097646,91104.0,91101.0,0.04909087]
[1767566460868,0.0548884,91094.0,91084.0,0.05489417]
[1767566461073,0.01097779,91093.0,91082.0,0.06020009]
[1767566461290,0.01097767,91094.0,91088.0,0.01097839]
[1767566461584,0.01097767,91094.0,91086.0,0.06587131]
[1767566461585,0.01097791,91092.0,91086.0,0.04922098]
[1767566461817,0.01097827,91089.0,91086.0,0.04922098]
[1767566462016,0.01097815,91090.0,91086.0,0.04922098]
[1767566462184,0.01097827,91089.0,91086.0,0.04922098]
[1767566463981,0.01097863,91086.0,91083.0,0.04922098]
[1767566464187,0.01097839,91088.0,91083.0,0.04922098]
[1767566464808,0.01097839,91088.0,91083.0,0.06019997]
[1767566464967,0.01097827,91089.0,91084.0,0.06019985]
[1767566465620,0.01097827,91089.0,91084.0,0.053068]
[1767566465815,0.01097815,91090.0,91084.0,0.053068]
[1767566466018,0.01097815,91090.0,91085.0,0.06019973]
[1767566466219,0.01097815,91090.0,91085.0,0.04922098]
[1767566466623,0.01097803,91091.0,91085.0,0.01097875]
[1767566467346,0.01097803,91091.0,91086.0,0.01097863]
[1767566467698,0.01097803,91091.0,91085.0,0.01097875]
[1767566468346,0.01097803,91091.0,91086.0,0.01097863]
[1767566468643,0.01097803,91091.0,91085.0,0.01097875]
[1767566469226,0.01097803,91091.0,91086.0,0.01097863]
[1767566469435,0.01097803,91091.0,91085.0,0.01097875]
[1767566469636,0.01097815,91090.0,91085.0,0.01097875]
[1767566470062,0.01097803,91091.0,91086.0,0.01097863]
[1767566470553,0.01097803,91091.0,91085.0,0.01097875]
[1767566470758,0.01097803,91091.0,91086.0,0.01097863]
[1767566470920,0.01097803,91091.0,91085.0,0.01097875]
[1767566471515,0.01097803,91091.0,91086.0,0.01097863]
[1767566471867,0.04286651,91094.0,91086.0,0.01097863]
[1767566472155,0.04286651,91094.0,91082.0,0.04922098]
[1767566472335,0.0109767,91102.0,91097.0,0.0109773]
[1767566472540,0.01105184,91102.0,91095.0,0.01097755]
[1767566472747,0.02196,91101.0,91097.0,0.04922098]
[1767566473121,0.02196,91101.0,91096.0,0.01097743]
[1767566473658,0.020961,91101.0,91098.0,0.01097718]
[1767566474006,0.02087295,91101.0,91098.0,0.01097718]
[1767566474967,7.514e-05,91102.0,91101.0,0.05488413]
[1767566475520,7.514e-05,91102.0,91101.0,0.10410511]
[1767566475730,0.01097225,91139.0,91124.0,0.04922098]
[1767566476064,1e-08,91125.0,91124.0,0.13679568]
[1767566476443,1e-08,91128.0,91126.0,0.04922098]
[1767566476645,8.704e-05,91128.0,91126.0,0.04922098]
[1767566476868,8.704e-05,91128.0,91127.0,0.05486848]
[1767566477486,8.704e-05,91128.0,91127.0,0.10408946]
[1767566479453,4.527e-05,91128.0,91127.0,0.10408946]
[1767566479671,0.00505764,91138.0,91133.0,0.01097297]
[1767566479984,0.00505764,91138.0,91133.0,0.00997397]
[1767566480912,0.01097225,91139.0,91133.0,0.00997397]
[1767566481897,0.01097237,91138.0,91133.0,0.00997397]
[1767566482083,0.03293201,91141.0,91133.0,0.00997397]
[1767566482707,0.01097213,91140.0,91133.0,0.00997397]
[1767566482886,0.01097225,91139.0,91134.0,0.01097285]
[1767566483505,0.01097225,91139.0,91133.0,0.00997397]
[1767566483914,0.01097213,91140.0,91135.0,0.01097273]
[1767566484142,0.01097225,91139.0,91134.0,0.01097285]
[1767566484265,0.01097225,91139.0,91133.0,0.00997397]
[1767566484623,0.01097225,91139.0,91134.0,0.01097285]
[1767566484821,0.03293201,91141.0,91134.0,0.01097285]
[1767566485020,0.03293201,91141.0,91135.0,0.01097273]
[1767566485723,0.01097213,91140.0,91135.0,0.01097273]
[1767566486893,0.01097213,91140.0,91134.0,0.01097285]
[1767566487088,0.03293201,91141.0,91135.0,0.01097273]
[1767566487307,0.01993201,91141.0,91135.0,0.01097273]
[1767566487929,0.01993201,91141.0,91136.0,0.01097261]
[1767566488430,0.00896,91141.0,91135.0,0.01097273]
[1767566489061,0.01993201,91141.0,91135.0,0.01097273]
[1767566495199,0.02196,91140.0,91135.0,0.01097273]
[1767566495417,0.02196,91140.0,91136.0,0.01097261]
[1767566496203,0.02196,91140.0,91135.0,0.01097273]
[1767566497192,0.01097225,91139.0,91133.0,0.06483843]
[1767566497409,0.01097225,91139.0,91134.0,0.01097285]
[1767566497635,0.03293213,91140.0,91135.0,0.01097273]
[1767566500781,0.03293213,91140.0,91134.0,0.01097285]
[1767566501699,0.03293213,91140.0,91135.0,0.01097273]
[1767566502739,0.02293213,91140.0,91135.0,0.01097273]
[1767566504966,0.02293213,91140.0,91134.0,0.01092792]
[1767566505328,0.02293213,91140.0,91135.0,0.01097273]
[1767566506063,0.02293213,91140.0,91134.0,0.00764292]
[1767566506312,0.02293213,91140.0,91135.0,0.01097273]
[1767566507100,0.02293213,91140.0,91134.0,0.00764292]
[1767566507286,0.02293213,91140.0,91135.0,0.01097273]
[1767566507467,0.01097225,91139.0,91134.0,0.00764292]
[1767566507895,0.02293213,91140.0,91134.0,0.00764292]
[1767566508099,0.02293213,91140.0,91135.0,0.01097273]
[1767566508299,0.01097225,91139.0,91134.0,0.00764292]
[1767566508651,0.02293213,91140.0,91134.0,0.00764292]
[1767566509324,0.02293213,91140.0,91135.0,0.01097273]
[1767566509530,0.04830424,91139.0,91135.0,0.01097273]
[1767566509702,0.04830424,91139.0,91130.0,0.39945169]
[1767566509908,0.04830424,91139.0,91120.0,0.34458517]
[1767566510269,0.02293213,91140.0,91134.0,0.01097285]
[1767566510470,0.01193213,91140.0,91134.0,0.01097285]
[1767566511070,0.01193213,91140.0,91135.0,0.01097273]
[1767566512127,0.01193213,91140.0,91134.0,0.01097285]
[1767566512356,0.01193213,91140.0,91135.0,0.01097273]
[1767566512671,0.01193213,91140.0,91134.0,0.01097285]
[1767566513203,0.01193213,91140.0,91134.0,0.01092792]
[1767566514299,0.05485467,91150.0,91140.0,0.000999]
[1767566514630,0.26774594,91157.0,91140.0,0.000999]
[1767566514631,0.0109708,91151.0,91143.0,0.10403519]
[1767566514795,0.02196,91147.0,91143.0,0.05485825]
[1767566515400,0.02196,91147.0,91143.0,0.01097176]
[1767566516998,2e-07,91146.0,91143.0,0.01097176]
[1767566517643,0.00342709,91145.0,91143.0,0.01097176]
[1767566517795,0.00342709,91144.0,91142.0,0.06254589]
[1767566517997,0.00262009,91143.0,91142.0,0.06254589]
[1767566518201,0.02196,91147.0,91143.0,0.01097176]
[1767566519166,0.02196,91147.0,91142.0,0.06254589]
[1767566519374,0.02196,91147.0,91143.0,0.01097176]
[1767566519920,0.02196,91147.0,91142.0,0.06254589]
[1767566520280,0.02196,91147.0,91142.0,0.01097189]
[1767566521157,0.03293128,91147.0,91141.0,0.01097201]
[1767566521541,0.03293128,91147.0,91142.0,0.01097189]
[1767566522157,0.03293128,91147.0,91141.0,0.01097201]
[1767566522368,0.03293128,91147.0,91142.0,0.01097189]
[1767566522571,0.03293128,91147.0,91141.0,0.01097201]
[1767566522752,0.02196,91147.0,91142.0,0.01097189]
[1767566523109,0.02196,91147.0,91142.0,0.0658311]
[1767566524351,0.02196,91147.0,91143.0,0.01097176]
[1767566524550,0.02196,91147.0,91143.0,0.01092683]
[1767566525211,0.02196,91147.0,91143.0,0.0108819]
[1767566525726,0.02196,91147.0,91142.0,0.0658311]
[1767566525909,0.01196,91147.0,91142.0,0.0658311]
[1767566526285,0.01196,91147.0,91143.0,0.01097176]
[1767566526942,0.01196,91147.0,91142.0,0.01097189]
[1767566527433,0.01196,91147.0,91143.0,0.01097176]
[1767566527649,0.01196,91147.0,91142.0,0.01097189]
[1767566530319,0.00342701,91146.0,91142.0,0.01097189]
[1767566530532,0.00342701,91145.0,91142.0,0.01097189]
[1767566530730,0.00342701,91144.0,91142.0,0.01097189]
[1767566530940,0.00342701,91143.0,91142.0,0.01097189]
[1767566531998,0.00342701,91143.0,91141.0,0.01097201]
[1767566532211,0.00342701,91142.0,91141.0,0.01097201]
[1767566533638,0.02038701,91148.0,91143.0,0.01097176]
[1767566533877,0.03135817,91148.0,91143.0,0.01097176]
[1767566534291,0.03135817,91148.0,91142.0,0.01097189]
[1767566534497,0.02038701,91148.0,91143.0,0.01097176]
[1767566534917,0.03135817,91148.0,91142.0,0.01097189]
[1767566535122,0.03135817,91148.0,91143.0,0.01097176]
[1767566535525,0.02038701,91148.0,91143.0,0.01097176]
[1767566535738,0.02038701,91148.0,91142.0,0.01097189]
[1767566535935,0.02038701,91148.0,91142.0,0.00768732]
[1767566536759,0.06697807,91148.0,91142.0,0.00768732]
[1767566536961,0.06697807,91148.0,91144.0,0.01097164]
[1767566537165,0.04659106,91147.0,91144.0,0.01092761]
[1767566537377,0.04659106,91147.0,91143.0,0.06583052]
[1767566537378,0.04659106,91147.0,91143.0,0.02675813]
[1767566537840,0.02038701,91148.0,91144.0,0.01097164]
[1767566538394,0.02038701,91148.0,91145.0,0.01097152]
[1767566538560,0.02038701,91148.0,91144.0,0.01097164]
[1767566539172,0.02038701,91148.0,91145.0,0.01097152]
[1767566539580,0.02038701,91148.0,91145.0,0.06582913]
[1767566539871,0.02038701,91148.0,91145.0,0.01097152]
[1767566541298,0.01538701,91148.0,91144.0,0.01092671]
[1767566541700,0.01538701,91148.0,91144.0,0.01088268]
[1767566543340,0.01538701,91148.0,91144.0,0.01097164]
[1767566544968,0.01538701,91148.0,91143.0,0.01097176]
[1767566545732,0.00342699,91147.0,91143.0,0.01097176]
[1767566545935,0.00342699,91146.0,91143.0,0.01097176]
[1767566546134,0.00342699,91145.0,91143.0,0.01097176]
[1767566546332,0.00342699,91144.0,91143.0,0.01097176]
[1767566547787,0.00342699,91144.0,91142.0,0.00768732]
[1767566547989,0.00342699,91143.0,91141.0,0.059263]
[1767566548165,0.00342699,91142.0,91141.0,0.059263]
[1767566548700,0.00342699,91142.0,91141.0,0.10825037]
[1767566549054,0.02378516,91148.0,91142.0,0.04898737]
[1767566550409,0.02378516,91148.0,91142.0,0.05995926]
[1767566552864,0.02378516,91148.0,91142.0,0.05991433]
[1767566553199,0.01097128,91147.0,91142.0,0.05991433]
[1767566555701,0.01097128,91147.0,91142.0,0.05278617]
[1767566556782,0.00497128,91147.0,91142.0,0.04181428]
[1767566557196,0.0109714,91146.0,91142.0,0.04181428]
[1767566557715,0.00497128,91147.0,91142.0,0.05278617]
[1767566558090,0.00497128,91147.0,91142.0,0.04181428]
[1767566558304,0.00497128,91147.0,91142.0,0.05278617]
[1767566558684,0.0109714,91146.0,91140.0,0.01097213]
[1767566558929,0.00497128,91147.0,91141.0,0.01097201]
[1767566559121,0.0109714,91146.0,91140.0,0.01097213]
[1767566559820,0.0109714,91146.0,91141.0,0.01097201]
[1767566559975,0.0109714,91146.0,91140.0,0.00768781]
[1767566560527,0.00497128,91147.0,91141.0,0.01097201]
[1767566560674,0.0109714,91146.0,91140.0,0.00768781]
[1767566561127,0.0109714,91146.0,91141.0,0.01097201]
[1767566561510,0.0109714,91146.0,91141.0,0.0491879]
[1767566562115,0.0109714,91146.0,91141.0,0.06015991]
[1767566562623,0.0109714,91146.0,91141.0,0.0491879]
[1767566563071,0.0109714,91146.0,91141.0,0.06015991]
[1767566563219,0.01097164,91144.0,91141.0,0.0491879]
[1767566563421,0.0109714,91146.0,91141.0,0.0491879]
[1767566564169,0.01097152,91145.0,91141.0,0.0491879]
[1767566564459,0.05279965,91147.0,91141.0,0.0491879]
[1767566564861,0.0109714,91146.0,91141.0,0.0491879]
[1767566565157,0.01097152,91145.0,91141.0,0.0491879]
[1767566565338,0.0109714,91146.0,91141.0,0.0491879]
[1767566565534,0.0109714,91146.0,91141.0,0.06015991]
[1767566565945,0.0109714,91146.0,91141.0,0.04590358]
[1767566566124,0.01097128,91147.0,91141.0,0.04590358]
[1767566566754,0.01097128,91147.0,91141.0,0.03488664]
[1767566568314,0.0109714,91146.0,91141.0,0.04585865]
[1767566568584,0.0109714,91146.0,91141.0,0.03488664]
[1767566568768,0.04117195,91145.0,91140.0,0.0109281]
[1767566569290,0.04117195,91145.0,91141.0,0.01097201]
[1767566569620,0.0109714,91146.0,91140.0,0.0109281]
[1767566569950,0.01097152,91145.0,91138.0,0.06583379]
[1767566570194,0.0109714,91146.0,91140.0,0.01097213]
[1767566570624,0.01097152,91145.0,91140.0,0.0491879]
[1767566571126,0.01097152,91145.0,91140.0,0.06016003]
[1767566571713,0.0109714,91146.0,91140.0,0.06016003]
[1767566571890,0.0109714,91146.0,91141.0,0.01097201]
[1767566572254,0.0109714,91146.0,91140.0,0.06016003]
[1767566572456,0.0109714,91146.0,91141.0,0.01097201]
[1767566572694,0.0109714,91146.0,91140.0,0.06016003]
[1767566572938,0.01097128,91147.0,91143.0,0.0491879]
[1767566573490,0.01097128,91147.0,91142.0,0.01097189]
[1767566573694,0.01097128,91147.0,91143.0,0.0491879]
[1767566574493,0.03293116,91148.0,91143.0,0.0491879]
[1767566574693,0.01097128,91147.0,91143.0,0.0491879]
[1767566575205,0.01088321,91147.0,91143.0,0.0491879]
[1767566576292,0.0109714,91146.0,91143.0,0.0491879]
[1767566576457,0.01088321,91147.0,91143.0,0.0491879]
[1767566578406,0.0109714,91146.0,91143.0,0.04904992]
[1767566579935,0.0109714,91146.0,91143.0,0.04900499]
[1767566580370,0.0109714,91146.0,91137.0,0.04452355]
[1767566580674,0.0109714,91146.0,91140.0,0.01097213]
[1767566580879,0.00685461,91147.0,91140.0,0.01097213]
[1767566581091,0.0109714,91146.0,91140.0,0.01097213]
[1767566581297,0.0109714,91146.0,91139.0,0.01097225]
[1767566581669,0.0109714,91146.0,91140.0,0.01097213]
[1767566582589,0.01088332,91146.0,91140.0,0.05790946]
[1767566583610,0.01068329,91146.0,91140.0,0.05790946]
[1767566584501,0.01097152,91145.0,91140.0,0.04693733]
[1767566584702,0.01097152,91145.0,91140.0,0.05790946]
[1767566584882,0.01068329,91146.0,91140.0,0.05790946]
[1767566585564,0.01068329,91146.0,91142.0,0.04693733]
[1767566585763,0.01068329,91146.0,91142.0,0.03980916]
[1767566586974,0.01097128,91147.0,91142.0,0.03980916]
[1767566587227,0.0109714,91146.0,91142.0,0.03980916]
[1767566587632,0.01097128,91147.0,91142.0,0.03980916]
[1767566588275,0.0109714,91146.0,91142.0,0.03980916]
[1767566588627,0.01097128,91147.0,91142.0,0.03881016]
[1767566588628,0.0617994,91147.0,91142.0,0.03881016]
[1767566588834,0.01087139,91146.0,91140.0,0.01097213]
[1767566589414,0.01087139,91146.0,91140.0,0.05790946]
[1767566589989,0.01097152,91145.0,91140.0,0.04365316]
[1767566590229,0.01088344,91145.0,91140.0,0.05462529]
[1767566590642,0.01087139,91146.0,91140.0,0.05462529]
[1767566591008,0.01087139,91146.0,91140.0,0.04365316]
[1767566591209,0.01097152,91145.0,91140.0,0.04365316]
[1767566592360,0.01097152,91145.0,91139.0,0.01097225]
[1767566592518,0.01097152,91145.0,91141.0,0.04693733]
[1767566593177,0.01087139,91146.0,91141.0,0.04693733]
[1767566593495,0.01097152,91145.0,91141.0,0.04693733]
[1767566593638,0.01097152,91145.0,91139.0,0.01097225]
[1767566593860,0.01097152,91145.0,91140.0,0.01097213]
[1767566594075,0.01097152,91145.0,91141.0,0.04693733]
[1767566594280,0.0109714,91146.0,91141.0,0.04693733]
[1767566594714,0.01097152,91145.0,91139.0,0.01097225]
[1767566595426,0.0109714,91146.0,91141.0,0.01097201]
[1767566595625,0.01097152,91145.0,91141.0,0.04693733]
[1767566595834,0.0109714,91146.0,91141.0,0.04693733]
[1767566595996,0.01097152,91145.0,91141.0,0.04693733]
[1767566596451,0.0109714,91146.0,91141.0,0.04693733]
[1767566596852,0.01097152,91145.0,91141.0,0.04679935]
[1767566597608,0.0109714,91146.0,91141.0,0.04679935]
[1767566600737,0.0109714,91146.0,91141.0,0.03967122]
[1767566601097,0.01097152,91145.0,91141.0,0.02897902]
[1767566601304,0.01097152,91145.0,91140.0,0.01097213]
[1767566601498,0.0109714,91146.0,91140.0,0.01097213]
[1767566602627,0.01097152,91145.0,91140.0,0.01097213]
[1767566602943,0.0109714,91146.0,91139.0,0.01097225]
[1767566603144,0.0109714,91146.0,91140.0,0.01097213]
[1767566603721,0.01097152,91145.0,91140.0,0.01097213]
[1767566603937,0.00694292,91146.0,91140.0,0.01097213]
[1767566604362,0.01097152,91145.0,91140.0,0.01097213]
[1767566604565,0.00694292,91146.0,91140.0,0.01097213]
[1767566607662,0.00694292,91146.0,91141.0,0.01097201]
[1767566608119,0.00694292,91146.0,91140.0,0.01097213]
[1767566610141,0.00685481,91146.0,91140.0,0.01097213]
[1767566611252,0.01097152,91145.0,91139.0,0.01097225]
[1767566611599,0.06582805,91147.0,91140.0,0.01097213]
[1767566611838,0.0109714,91146.0,91140.0,0.01097213]
[1767566614081,0.01097152,91145.0,91139.0,0.00768806]
[1767566614283,0.0109714,91146.0,91140.0,0.01097213]
[1767566614776,0.01097152,91145.0,91139.0,0.00768806]
[1767566615013,0.0109714,91146.0,91140.0,0.01097213]
[1767566619326,0.05979945,91147.0,91140.0,0.01097213]
[1767566619738,0.0109714,91146.0,91140.0,0.01097213]
[1767566620264,0.0109714,91146.0,91139.0,0.00440386]
[1767566620903,0.01097152,91145.0,91140.0,0.01097213]
[1767566621024,0.0109714,91146.0,91140.0,0.01097213]
[1767566623526,0.0109714,91146.0,91141.0,0.01097201]
[1767566624562,0.0109714,91146.0,91138.0,0.02196]
[1767566624962,0.0109714,91146.0,91139.0,0.05486088]
[1767566625174,0.00494268,91147.0,91141.0,0.01097201]
[1767566625372,0.0109714,91146.0,91140.0,0.01097213]
[1767566625985,0.0109714,91146.0,91141.0,0.01097201]
[1767566626468,0.05485455,91151.0,91141.0,0.01097201]
[1767566626636,0.02196,91150.0,91146.0,0.000999]
[1767566626846,0.02196,91150.0,91146.0,0.00095407]
[1767566627054,0.01296,91150.0,91146.0,0.0109714]
[1767566627477,0.01296,91150.0,91145.0,0.01097152]
[1767566627796,0.02196,91149.0,91146.0,0.0109264]
[1767566628144,0.0476709,91148.0,91144.0,0.01097164]
[1767566628549,0.01097116,91148.0,91143.0,0.01097176]
[1767566628773,0.03293104,91149.0,91143.0,0.01097176]
[1767566628990,0.01097116,91148.0,91143.0,0.01097176]
[1767566629283,0.01097116,91148.0,91129.0,0.21946723]
[1767566629284,0.05864279,91142.0,91128.0,0.01097357]
[1767566629422,0.34414412,91153.0,91120.0,0.39024046]
[1767566629423,0.01097285,91134.0,91125.0,4e-05]
[1767566629628,0.0476709,91132.0,91128.0,0.01097357]
[1767566629848,0.0476709,91132.0,91129.0,0.01097345]
[1767566630173,0.02196,91133.0,91129.0,0.01097345]
[1767566630332,0.02196,91133.0,91128.0,0.01097357]
[1767566630524,0.02196,91133.0,91129.0,0.01097345]
[1767566630736,0.0476709,91130.0,91125.0,0.01097393]
[1767566630934,0.01097429,91122.0,91116.0,0.01097502]
[1767566631141,0.01097429,91122.0,91115.0,4e-05]
[1767566631142,0.01097429,91122.0,91115.0,0.01101514]
[1767566631344,0.01097417,91123.0,91115.0,0.01101514]
[1767566631726,0.01097417,91123.0,91118.0,0.01097477]
[1767566631931,0.05864507,91123.0,91117.0,0.0109749]
[1767566632092,0.0476709,91121.0,91116.0,0.01097502]
[1767566632296,0.0476709,91121.0,91117.0,0.0109749]
[1767566632885,0.0476709,91121.0,91118.0,0.01097477]
[1767566633092,0.0476709,91121.0,91117.0,0.0109749]
[1767566633303,0.01097417,91123.0,91117.0,0.0109749]
[1767566633499,0.01097345,91129.0,91119.0,0.06584746]
[1767566633712,0.0476709,91129.0,91123.0,0.01097417]
[1767566633900,0.01097297,91133.0,91125.0,0.01097393]
[1767566634109,0.02196,91132.0,91127.0,0.01097369]
[1767566634332,0.0476709,91131.0,91128.0,0.01097357]
[1767566634756,0.0286709,91131.0,91128.0,0.01097357]
[1767566635175,0.0286709,91131.0,91127.0,0.01097369]
[1767566635404,0.02196,91130.0,91127.0,0.01097369]
[1767566636067,0.02196,91130.0,91126.0,0.01097381]
[1767566636647,0.02196,91130.0,91125.0,0.0109299]
[1767566636823,0.03293333,91130.0,91125.0,0.0109299]
[1767566637021,0.02196,91130.0,91125.0,0.01088586]
[1767566637372,0.02196,91129.0,91125.0,0.01088586]
[1767566637580,4e-05,91135.0,91128.0,0.01097357]
[1767566637804,0.02196,91134.0,91130.0,0.01097333]
[1767566638006,0.0696309,91134.0,91130.0,0.01097333]
[1767566638259,0.0476709,91133.0,91130.0,0.01097333]
[1767566638432,0.0476709,91133.0,91129.0,0.01097345]
[1767566638646,0.0476709,91133.0,91130.0,0.01097333]
[1767566639036,0.0476709,91133.0,91129.0,0.01097345]
[1767566639477,0.0476709,91133.0,91128.0,0.01097357]
[1767566640183,0.02196,91132.0,91129.0,0.01097345]
[1767566640495,0.02196,91132.0,91128.0,0.01097357]
[1767566641217,0.02196,91132.0,91127.0,0.05486848]
[1767566641688,0.02196,91132.0,91128.0,0.01097357]
[1767566642231,0.02196,91132.0,91127.0,0.01097369]
[1767566642433,0.01196,91132.0,91128.0,0.01097357]
[1767566643043,0.01196,91132.0,91127.0,0.01097369]
[1767566643287,0.05723482,91132.0,91128.0,0.01097357]
[1767566643499,0.06820791,91132.0,91127.0,0.01097369]
[1767566643675,0.05723482,91132.0,91127.0,0.01097369]
[1767566643894,0.06820791,91132.0,91126.0,0.01097381]
[1767566644093,0.06820791,91132.0,91127.0,0.01097369]
[1767566644661,0.02196,91131.0,91128.0,0.01097357]
[1767566644906,0.02196,91131.0,91127.0,0.01097369]
[1767566645792,0.02196,91131.0,91126.0,0.01097381]
[1767566647305,0.02196,91131.0,91127.0,0.01097369]
[1767566649487,6.323e-05,91131.0,91128.0,0.01097357]
[1767566649657,0.02196,91130.0,91128.0,0.01097357]
[1767566650206,0.01196,91130.0,91128.0,0.01097357]
[1767566651237,0.01196,91130.0,91127.0,0.01097369]
[1767566651664,0.01196,91130.0,91119.0,0.04913329]
[1767566652827,6.323e-05,91131.0,91127.0,0.01097369]
[1767566653002,0.02196,91130.0,91127.0,0.01097369]
[1767566654086,6.323e-05,91131.0,91128.0,0.01097357]
[1767566654241,6.323e-05,91131.0,91127.0,0.01097369]
[1767566654449,0.02196,91130.0,91126.0,0.01097381]
[1767566654652,0.02196,91130.0,91127.0,0.01097369]
[1767566657946,0.00996,91130.0,91127.0,0.01097369]
[1767566660668,0.00803971,91130.0,91127.0,0.01097369]
[1767566660882,0.00803971,91130.0,91103.0,0.3407527]
[1767566660883,0.04527482,91126.0,91120.0,0.01097453]
[1767566661082,0.000999,91127.0,91123.0,0.01097417]
[1767566661284,0.01097357,91128.0,91120.0,0.01097453]
[1767566661613,0.01097357,91128.0,91122.0,0.01097429]
[1767566661784,0.01097369,91127.0,91121.0,0.01097441]
[1767566661989,0.01097381,91126.0,91120.0,0.01097453]
[1767566662134,0.01097369,91127.0,91121.0,0.01097441]
[1767566662329,0.02196,91126.0,91120.0,0.01097453]
[1767566662551,0.02196,91126.0,91121.0,0.01097441]
[1767566662810,0.03293381,91126.0,91120.0,0.01097453]
[1767566662948,0.02196,91126.0,91121.0,0.01097441]
[1767566663289,0.02196,91125.0,91122.0,0.01097429]
[1767566665531,0.02196,91124.0,91122.0,0.01097429]
[1767566665825,0.00896,91124.0,91121.0,0.01097441]
[1767566666023,0.04527482,91123.0,91119.0,0.01584745]
[1767566667334,0.04527482,91123.0,91121.0,0.01097441]
[1767566667534,0.04527482,91123.0,91120.0,0.01097453]
[1767566668600,0.04527482,91123.0,91118.0,0.01097477]
[1767566668831,0.04527482,91123.0,91119.0,0.01097465]
[1767566669385,0.03871116,91122.0,91119.0,0.01097465]
[1767566669585,0.02196,91123.0,91119.0,0.01097465]
[1767566669794,0.01097417,91123.0,91117.0,0.0109749]
[1767566669997,0.02196,91122.0,91118.0,0.01097477]
[1767566670653,0.02196,91122.0,91119.0,0.01097465]
[1767566671016,0.02196,91122.0,91118.0,0.01097477]
[1767566671218,0.02196,91122.0,91116.0,0.05487469]
[1767566671458,0.02196,91122.0,91116.0,0.01097502]
[1767566671645,0.01097417,91123.0,91116.0,0.01097502]
[1767566671980,0.02196,91122.0,91117.0,0.0109749]
[1767566672613,0.02196,91122.0,91118.0,0.01097477]
[1767566673359,0.00896,91122.0,91118.0,0.01097477]
[1767566673863,0.00896,91122.0,91116.0,0.01097502]
[1767566674162,0.00896,91122.0,91116.0,0.00769062]
[1767566674342,0.00896,91122.0,91118.0,0.01097477]
[1767566675374,0.00896,91122.0,91117.0,0.05982338]
[1767566675789,0.01993429,91122.0,91117.0,0.04884848]